bitfinex-derivatives/quotes_ETHF0:USTF0_20250421
["timestamp","ask_amount","ask_price","bid_price","bid_amount"]
[1745203003216,1.39138157,1635.8,1635.7,11.84428415]
[1745203003419,3.03638157,1635.8,1635.7,13.52588415]
[1745203003919,3.03638157,1635.8,1635.7,11.84428415]
[1745203004119,4.59878157,1635.8,1635.7,11.84428415]
[1745203004422,9.59878157,1635.8,1635.7,9.39488415]
[1745203005232,1.22281,1635.7,1635.6,3.70081956]
[1745203005424,6.13831,1635.7,1635.6,3.70081956]
[1745203005620,11.13831,1635.7,1635.6,3.70081956]
[1745203007026,2.93051,1635.7,1635.6,3.70081956]
[1745203007227,2.93051,1635.7,1635.6,5.32001956]
[1745203007526,2.93051,1635.7,1635.6,1.6192]
[1745203008027,4.9155,1635.7,1635.6,1.6192]
[1745203008229,6.13831,1635.7,1635.6,1.6192]
[1745203008721,1.22291,1635.6,1635.4,2.6975077]
[1745203008924,4.9155,1635.7,1635.3,3.2078]
[1745203009121,1.22304,1635.4,1635.3,3.2078]
[1745203009323,1.22311,1635.3,1635.2,1.7718]
[1745203009520,1.22322,1635.2,1635.0,3.2078]
[1745203009826,1.22326,1635.1,1635.0,4.9796]
[1745203010027,1.22326,1635.1,1635.0,1.7718]
[1745203010415,9.8256,1635.3,1635.0,1.7718]
[1745203010621,6.6178,1635.3,1635.0,1.7718]
[1745203010821,6.6178,1635.3,1635.1,1.22323]
[1745203011021,6.6178,1635.3,1635.2,1.7718]
[1745203011222,7.84091,1635.3,1635.2,1.7718]
[1745203011423,6.6178,1635.3,1635.2,1.7718]
[1745203012018,6.6178,1635.3,1635.2,2.99498]
[1745203012019,4.881,1635.3,1635.2,2.99498]
[1745203012235,4.881,1635.3,1635.2,5.25898]
[1745203012536,1.22298,1635.5,1635.2,4.0358]
[1745203012832,1.7393,1635.5,1635.2,4.0358]
[1745203013031,1.7393,1635.5,1635.3,1.22308]
[1745203013220,1.7393,1635.5,1635.4,1.7784]
[1745203013424,8.0898,1635.6,1635.4,1.7784]
[1745203013722,9.31273,1635.6,1635.4,1.7784]
[1745203014524,9.31271,1635.6,1635.4,1.7784]
[1745203014729,9.31272,1635.6,1635.4,1.7784]
[1745203014932,9.31272,1635.6,1635.4,3.00143]
[1745203015132,9.31272,1635.6,1635.4,1.7784]
[1745203015833,9.3127,1635.6,1635.4,1.7784]
[1745203016524,6.1049,1635.6,1635.4,1.7784]
[1745203016930,4.882,1635.6,1635.4,1.7784]
[1745203017122,4.882,1635.6,1635.4,4.0424]
[1745203017324,4.882,1635.6,1635.5,1.22296]
[1745203017531,4.882,1635.6,1635.5,2.83806]
[1745203018040,4.882,1635.6,1635.5,1.6151]
[1745203018535,6.10489,1635.6,1635.5,1.6151]
[1745203018736,7.72369,1635.6,1635.5,1.6151]
[1745203020130,9.7086,1635.6,1635.1,4.8359]
[1745203020329,1.22317,1635.3,1635.2,1.7468]
[1745203020628,1.7718,1635.5,1635.2,2.96994]
[1745203020824,3.2078,1635.4,1635.2,1.22314]
[1745203021034,4.43085,1635.4,1635.3,1.7468]
[1745203022234,4.882,1635.6,1635.3,1.7468]
[1745203022525,4.882,1635.6,1635.3,4.4443077]
[1745203022732,9.32267983,1635.9,1635.6,1.22283]
[1745203022931,9.32265983,1635.9,1635.5,2.6975077]
[1745203023133,9.32267983,1635.9,1635.6,1.22285]
[1745203023436,8.09996983,1635.9,1635.6,1.7426]
[1745203023735,9.32269983,1635.9,1635.6,2.96544]
[1745203023939,1.6667,1635.8,1635.7,1.22281]
[1745203024124,1.6667,1635.8,1635.7,1.7426]
[1745203024734,2.88944,1635.8,1635.7,1.7426]
[1745203024940,8.09996983,1635.9,1635.7,1.7426]
[1745203025138,8.09996983,1635.9,1635.7,2.96536]
[1745203025631,10.98933983,1635.9,1635.8,1.7426]
[1745203026238,9.76666983,1635.9,1635.8,1.7426]
[1745203026439,10.98932983,1635.9,1635.8,1.7426]
[1745203027634,6.55886983,1635.9,1635.8,1.7426]
[1745203027835,9.76666983,1635.9,1635.8,1.7426]
[1745203028031,10.98932983,1635.9,1635.8,1.7426]
[1745203031336,8.09996983,1635.9,1635.8,1.7426]
[1745203031633,4.89216983,1635.9,1635.8,2.96534]
[1745203032340,4.89216983,1635.9,1635.8,3.75553045]
[1745203032642,4.89216983,1635.9,1635.8,3.75550395]
[1745203032938,0.00916983,1635.9,1635.8,8.75550395]
[1745203033336,0.00916983,1635.9,1635.8,10.26890395]
[1745203034034,1.3218,1636.0,1635.9,1.22266]
[1745203034233,1.3218,1636.0,1635.9,8.78162395]
[1745203034429,1.22266,1635.9,1635.8,3.2078]
[1745203034631,1.22274,1635.8,1635.7,2.27316983]
[1745203034826,4.43054,1635.8,1635.7,2.27316983]
[1745203035031,6.06504,1635.8,1635.7,2.27316983]
[1745203035250,6.06504,1635.8,1635.7,0.00916983]
[1745203035638,11.06504,1635.8,1635.7,0.00916983]
[1745203035831,1.22318,1635.2,1635.1,3.2078]
[1745203036036,4.879,1635.4,1635.1,3.2078]
[1745203036339,1.22318,1635.2,1635.1,3.2078]
[1745203036638,1.22326,1635.1,1635.0,1.6709]
[1745203036833,2.89006,1635.1,1635.0,1.6709]
[1745203037035,1.22335,1635.0,1634.8,3.0265]
[1745203037242,2.89015,1635.0,1634.8,3.1606]
[1745203037542,1.22355,1634.8,1634.6,23.00012851]
[1745203037744,1.22348,1634.8,1634.7,1.6709]
[1745203038040,1.22348,1634.8,1634.6,19.79232851]
[1745203038041,1.22354,1634.8,1634.6,19.79232851]
[1745203038244,1.22354,1634.8,1634.6,21.46322851]
[1745203039035,1.22356,1634.7,1634.6,1.6709]
[1745203039238,1.22363,1634.6,1634.5,2.264]
[1745203040141,3.2078,1634.7,1634.3,1.7227]
[1745203040336,1.22377,1634.5,1634.3,1.7227]
[1745203040737,3.2078,1634.5,1634.2,3.2078]
[1745203040945,1.22385,1634.4,1634.2,3.2078]
[1745203041347,1.22385,1634.4,1634.2,5.4718]
[1745203041538,3.2078,1634.5,1634.3,2.95895]
[1745203041851,1.22366,1634.6,1634.4,1.7351]
[1745203042146,1.22369,1634.6,1634.4,3.9991]
[1745203042347,6.2685,1634.8,1634.4,3.9991]
[1745203042547,1.22356,1634.7,1634.5,1.7351]
[1745203042757,7.492,1634.8,1634.5,2.9588]
[1745203042949,1.22358,1634.7,1634.5,1.7351]
[1745203043248,1.22358,1634.7,1634.6,1.7351]
[1745203044046,1.22363,1634.6,1634.5,2.264]
[1745203044240,3.2078,1634.7,1634.4,3.2078]
[1745203044241,1.22371,1634.5,1634.4,3.2078]
[1745203044742,1.22371,1634.5,1634.4,4.9694]
[1745203045049,3.2078,1634.5,1634.1,3.2078]
[1745203045239,1.22393,1634.2,1634.0,1.4875]
[1745203045445,1.22393,1634.2,1634.1,1.7616]
[1745203045646,11.14965,1634.2,1633.5,5.4718]
[1745203045950,1.22406,1634.1,1633.8,2.98582]
[1745203046150,1.22408,1634.0,1633.9,1.7616]
[1745203047351,1.22408,1634.0,1633.9,2.264]
[1745203047544,4.43188,1634.0,1633.9,2.264]
[1745203048248,1.22431,1633.7,1633.6,2.9913]
[1745203049045,1.22431,1633.7,1633.6,1.689]
[1745203049450,6.1062,1633.9,1633.6,11.12116]
[1745203049751,6.1062,1633.9,1633.6,6.12116]
[1745203049954,6.1062,1633.9,1633.7,1.689]
[1745203050142,1.22423,1633.8,1633.7,3.953]
[1745203050545,6.1062,1633.9,1633.7,3.953]
[1745203050744,6.1062,1633.9,1633.7,5.1773]
[1745203050951,1.22406,1634.1,1633.9,1.22414]
[1745203051257,1.22406,1634.1,1634.0,1.6749]
[1745203051848,4.7002,1634.2,1634.0,1.6749]
[1745203051849,1.22398,1634.2,1634.0,1.6749]
[1745203052048,6.11605983,1634.3,1634.0,8.37073]
[1745203052552,1.22393,1634.2,1634.1,1.6749]
[1745203053249,0.00916983,1634.3,1634.2,1.22393]
[1745203053455,0.00916983,1634.3,1634.1,1.6749]
[1745203053850,1.23307983,1634.3,1634.1,1.6749]
[1745203054048,0.00916983,1634.3,1634.1,1.6749]
[1745203054256,1.22393,1634.2,1634.1,1.6749]
[1745203054452,2.96703,1634.2,1634.1,1.6749]
[1745203056052,1.22401,1634.1,1634.0,2.264]
[1745203056256,2.96711,1634.1,1634.0,2.264]
[1745203057251,9.22081,1634.1,1634.0,2.264]
[1745203058851,7.84711,1634.1,1634.0,2.264]
[1745203059049,6.10401,1634.1,1634.0,2.264]
[1745203059959,4.88,1634.1,1634.0,2.264]
[1745203060356,4.88,1634.1,1634.0,3.9746]
[1745203060560,1.23302983,1634.3,1634.1,1.22399]
[1745203060750,0.00916983,1634.3,1634.2,2.93453]
[1745203061248,0.00916983,1634.3,1634.2,5.19853]
[1745203061551,0.00916983,1634.3,1634.2,3.9746]
[1745203061856,0.00916983,1634.3,1634.2,2.264]
[1745203062046,11.11302983,1634.3,1634.2,2.264]
[1745203062246,4.88916983,1634.3,1634.0,1.7106]
[1745203062447,1.22394,1634.2,1634.0,1.7106]
[1745203062650,4.88916983,1634.3,1634.0,1.7106]
[1745203062853,7.97382,1634.2,1633.7,2.6975077]
[1745203063049,1.22413,1634.0,1633.8,1.7796]
[1745203063356,1.22413,1634.0,1633.8,3.00383]
[1745203063553,1.22413,1634.0,1633.8,1.7796]
[1745203063758,1.22416,1633.9,1633.8,1.7796]
[1745203063961,1.7061,1634.1,1633.8,3.00381]
[1745203064157,1.22403,1634.1,1633.9,1.22414]
[1745203064357,1.22403,1634.1,1633.9,4.42294]
[1745203064658,5.82728,1634.2,1633.9,4.42294]
[1745203064861,3.2078,1634.2,1634.0,1.7796]
[1745203065156,1.22401,1634.1,1634.0,4.0436]
[1745203066450,2.91541,1634.1,1634.0,4.0436]
[1745203067156,4.43178,1634.2,1634.0,4.0436]
[1745203067361,1.22398,1634.2,1634.0,5.26767]
[1745203067558,1.22398,1634.2,1634.1,1.7034]
[1745203068257,1.22393,1634.2,1634.1,1.7034]
[1745203068561,6.58056983,1634.3,1634.1,1.7034]
[1745203069059,7.80448983,1634.3,1634.1,1.7034]
[1745203069465,6.58056983,1634.3,1634.1,1.7034]
[1745203069666,4.88916983,1634.3,1634.1,1.7034]
[1745203069968,3.2078,1634.8,1634.5,1.22368]
[1745203070155,6.07874,1634.8,1634.6,1.7216]
[1745203070357,4.8552,1634.8,1634.6,1.7216]
[1745203070557,1.22356,1634.7,1634.6,1.7216]
[1745203070758,2.87096,1634.7,1634.6,1.7216]
[1745203071153,1.22363,1634.6,1634.5,2.27316983]
[1745203071360,2.87103,1634.6,1634.5,2.27316983]
[1745203072863,1.22363,1634.6,1634.5,2.27316983]
[1745203073072,0.00916983,1634.8,1634.5,2.27316983]
[1745203073267,1.22356,1634.7,1634.6,1.745]
[1745203073468,1.7116,1634.7,1634.6,1.745]
[1745203074069,0.00916983,1634.8,1634.6,2.96863]
[1745203074270,0.00916983,1634.8,1634.7,1.745]
[1745203074472,1.23264983,1634.8,1634.7,1.745]
[1745203074765,2.94424983,1634.8,1634.7,1.745]
[1745203075265,6.15204983,1634.8,1634.7,1.745]
[1745203075460,6.15209983,1634.8,1634.5,1.23284983]
[1745203075766,0.00916983,1634.8,1634.6,2.99448]
[1745203076067,1.23264983,1634.8,1634.7,1.7709]
[1745203076471,1.22361,1634.7,1634.5,4.97067753]
[1745203076663,1.22361,1634.7,1634.6,1.7709]
[1745203078773,1.22361,1634.7,1634.5,4.97067753]
[1745203078974,1.22363,1634.6,1634.5,6.59247753]
[1745203079677,1.22361,1634.7,1634.5,6.59247753]
[1745203079975,2.90019983,1634.8,1634.6,1.6218]
[1745203080376,0.00916983,1634.8,1634.6,2.84542]
[1745203080571,0.00916983,1634.8,1634.7,1.6218]
[1745203080766,1.23264983,1634.8,1634.7,1.6218]
[1745203080972,2.87124983,1634.8,1634.7,1.6218]
[1745203081274,2.87124983,1634.8,1634.7,2.264]
[1745203082069,1.22356,1634.7,1634.6,1.604]
[1745203082773,1.64776983,1634.8,1634.6,2.82761]
[1745203083071,1.23264983,1634.8,1634.7,1.604]
[1745203083279,0.00916983,1634.8,1634.7,1.604]
[1745203084274,1.23264983,1634.8,1634.7,3.868]
[1745203084782,1.23264983,1634.8,1634.7,2.264]
[1745203085472,1.23264983,1634.8,1634.7,3.8982]
[1745203086181,1.23264983,1634.8,1634.7,1.6342]
[1745203086374,0.00916983,1634.8,1634.7,2.85776]
[1745203086879,0.00916983,1634.8,1634.7,1.6342]
[1745203087067,0.00916983,1634.8,1634.7,2.264]
[1745203087271,2.92844983,1634.8,1634.7,2.264]
[1745203088168,1.22363,1634.6,1634.5,2.70667753]
[1745203088874,4.31153,1634.6,1634.5,2.70667753]
[1745203089168,4.31153,1634.6,1634.5,0.00916983]
[1745203090776,3.0879,1634.6,1634.5,0.00916983]
[1745203090978,4.31153,1634.6,1634.5,1.71026983]
[1745203091179,4.31153,1634.6,1634.5,3.97426983]
[1745203091679,1.3921,1634.6,1634.5,3.97426983]
[1745203091878,1.3921,1634.6,1634.5,5.19797983]
[1745203092077,4.875,1634.7,1634.5,3.97426983]
[1745203092384,0.00916983,1634.8,1634.6,2.92468]
[1745203092587,0.00916983,1634.8,1634.7,1.7011]
[1745203093176,0.00916983,1634.8,1634.7,3.9651]
[1745203093782,1.23264983,1634.8,1634.7,3.9651]
[1745203093987,2.83964983,1634.8,1634.7,3.9651]
[1745203094178,1.61616983,1634.8,1634.7,3.9651]
[1745203094481,2.83964983,1634.8,1634.7,3.9651]
[1745203094686,1.61616983,1634.8,1634.7,3.9651]
[1745203095187,2.83964983,1634.8,1634.7,1.7011]
[1745203095582,1.61616983,1634.8,1634.7,1.7011]
[1745203095778,0.00916983,1634.8,1634.7,1.7011]
[1745203095980,1.23264983,1634.8,1634.7,1.7011]
[1745203097184,1.23264983,1634.8,1634.7,3.9651]
[1745203097888,0.00916983,1634.8,1634.7,3.9651]
[1745203098284,0.00916983,1634.8,1634.7,5.18866]
[1745203098484,1.23264983,1634.8,1634.7,3.9651]
[1745203098884,1.23264983,1634.8,1634.7,2.264]
[1745203099082,2.91274983,1634.8,1634.7,2.264]
[1745203099282,2.91274983,1634.8,1634.6,2.86083]
[1745203099482,2.91274983,1634.8,1634.7,1.6372]
[1745203100489,1.22363,1634.6,1634.5,2.70667753]
[1745203100787,1.7615,1634.7,1634.5,4.34387753]
[1745203101086,2.98506,1634.7,1634.6,1.6372]
[1745203101287,1.22363,1634.6,1634.5,4.97067753]
[1745203101483,2.98513,1634.6,1634.5,4.97067753]
[1745203101884,1.22363,1634.6,1634.5,4.97067753]
[1745203102079,4.43141,1634.7,1634.5,6.19436753]
[1745203102390,1.22356,1634.7,1634.6,1.7514]
[1745203102788,4.43136,1634.7,1634.6,1.7514]
[1745203103790,1.22363,1634.6,1634.5,4.97067753]
[1745203103991,4.12613,1634.6,1634.5,4.97067753]
[1745203104489,9.12613,1634.6,1634.5,2.27316983]
[1745203104687,10.35993,1634.6,1634.5,2.27316983]
[1745203105281,10.35993,1634.6,1634.5,0.00916983]
[1745203105486,5.35993,1634.6,1634.5,0.00916983]
[1745203108890,5.35993,1634.6,1634.3,1.6474]
[1745203108891,1.22393,1634.2,1634.1,2.6975077]
[1745203109192,4.43173,1634.2,1634.1,1.7666]
[1745203109389,4.88108558,1634.2,1634.1,1.7666]
[1745203109590,1.22401,1634.1,1634.0,2.264]
[1745203109789,2.86871,1634.1,1634.0,2.264]
[1745203110189,1.22416,1633.9,1633.8,1.7666]
[1745203110791,2.86886,1633.9,1633.8,1.7666]
[1745203110985,1.22416,1633.9,1633.8,1.7666]
[1745203111287,1.22393,1634.3,1634.0,1.22404]
[1745203111492,1.22393,1634.3,1633.8,9.9744]
[1745203111493,1.22393,1634.2,1634.1,2.9671]
[1745203113094,4.43173,1634.2,1634.1,1.6779]
[1745203113389,1.22405,1634.1,1633.9,1.3193]
[1745203113584,1.22405,1634.1,1634.0,1.6779]
[1745203114295,14.30785,1634.1,1634.0,2.264]
[1745203114497,16.05875,1634.1,1634.0,2.264]
[1745203114880,16.05875,1634.1,1634.0,0.76354]
[1745203115089,1.22431,1633.7,1633.6,4.8754]
[1745203115294,1.22431,1633.7,1633.6,3.2078]
[1745203116999,0.00916983,1633.8,1633.6,9.43216]
[1745203117297,0.00916983,1633.8,1633.5,8.4473]
[1745203117591,0.00916983,1633.8,1633.5,3.5763]
[1745203117801,1.23345983,1633.8,1633.5,4.80076]
[1745203118000,1.22438,1633.6,1633.5,2.264]
[1745203118501,1.22437,1633.7,1633.5,3.5247]
[1745203118998,1.22438,1633.6,1633.5,3.5247]
[1745203119205,4.43216,1633.7,1633.5,3.5247]
[1745203119404,1.22438,1633.6,1633.5,3.5247]
[1745203120401,2.83458,1633.6,1633.5,3.5247]
[1745203121398,2.83458,1633.6,1633.5,2.264]
[1745203121599,4.18928,1633.6,1633.5,2.264]
[1745203122312,1.22449,1633.5,1633.2,6.69646]
[1745203123511,1.22449,1633.5,1633.3,1.2246]
[1745203123711,2.57914,1633.6,1633.3,1.2246]
[1745203124009,1.23342983,1633.8,1633.4,2.6975077]
[1745203124209,1.23342983,1633.8,1633.5,2.5703]
[1745203124511,0.00916983,1633.8,1633.5,3.902]
[1745203125213,1.23346983,1633.8,1633.5,6.166]
[1745203125506,1.22432,1633.7,1633.5,4.9416]
[1745203125917,1.22432,1633.7,1633.5,6.16603]
[1745203126209,1.22432,1633.7,1633.5,4.9416]
[1745203126411,0.00916983,1633.8,1633.5,4.9416]
[1745203126611,1.23339983,1633.8,1633.6,1.22436]
[1745203126814,0.00916983,1633.8,1633.7,1.22431]
[1745203127008,0.00916983,1633.8,1633.6,3.9218277]
[1745203127314,0.00916983,1633.8,1633.7,2.264]
[1745203127604,1.23339983,1633.8,1633.7,2.264]
[1745203128405,2.99219983,1633.8,1633.7,2.264]
[1745203128607,1.23339983,1633.8,1633.7,2.264]
[1745203129203,0.00916983,1633.8,1633.7,3.48831]
[1745203129410,0.00916983,1633.8,1633.7,2.264]
[1745203129914,0.00916983,1633.8,1633.7,3.48831]
[1745203132109,1.22396,1634.2,1634.0,1.22404]
[1745203132608,6.09591,1634.3,1634.1,1.22399]
[1745203132812,6.09591,1634.3,1633.8,6.26836]
[1745203132813,1.22395,1634.2,1634.0,1.22403]
[1745203133016,1.22395,1634.2,1634.1,1.6977]
[1745203133710,1.22395,1634.2,1634.1,2.92171]
[1745203133914,1.22393,1634.2,1634.1,1.6977]
[1745203134416,1.23309983,1634.3,1634.1,2.92171]
[1745203134617,1.23309983,1634.3,1634.2,1.6977]
[1745203135111,0.00916983,1634.3,1634.2,5.18563]
[1745203135413,1.23302983,1634.3,1634.2,3.9617]
[1745203136017,0.00916983,1634.3,1634.2,5.18563]
[1745203136207,0.00916983,1634.3,1634.2,3.9617]
[1745203137315,0.00916983,1634.3,1634.2,5.18563]
[1745203137517,1.23302983,1634.3,1634.2,3.9617]
[1745203137712,2.89842983,1634.3,1634.2,2.264]
[1745203139116,0.00916983,1634.3,1634.2,3.48793]
[1745203139912,0.00916983,1634.3,1634.2,2.264]
[1745203140211,0.00916983,1634.3,1634.2,3.983]
[1745203140515,1.23302983,1634.3,1634.2,3.983]
[1745203140715,2.85372983,1634.3,1634.2,3.983]
[1745203141121,2.85372983,1634.3,1634.2,2.264]
[1745203142524,7.85372983,1634.3,1634.2,2.264]
[1745203142726,2.85372983,1634.3,1634.2,2.264]
[1745203147723,2.85372983,1634.3,1634.2,3.9968]
[1745203148124,1.23302983,1634.3,1634.2,3.9968]
[1745203149619,2.84102983,1634.3,1634.2,3.9968]
[1745203150829,0.00916983,1634.3,1634.2,3.9968]
[1745203151028,1.23302983,1634.3,1634.2,3.9968]
[1745203151230,2.94752983,1634.3,1634.2,3.9968]
[1745203151730,2.94752983,1634.3,1634.2,2.264]
[1745203153128,12.81252983,1634.3,1634.2,2.25483017]
[1745203153431,1.22423,1633.8,1633.7,2.6975077]
[1745203153627,1.22423,1633.9,1633.6,4.01857753]
[1745203153834,1.22423,1633.9,1633.6,5.24290753]
[1745203154333,1.22423,1633.8,1633.7,1.6214]
[1745203155027,1.22431,1633.7,1633.6,0.00916983]
[1745203155226,2.97501,1633.7,1633.6,0.00916983]
[1745203155828,2.97501,1633.7,1633.6,1.63056983]
[1745203157936,5.69176,1633.8,1633.6,1.63056983]
[1745203158234,7.39313,1634.0,1633.7,1.22428]
[1745203158423,1.22416,1633.9,1633.8,1.7218]
[1745203158627,7.8315,1634.0,1633.8,2.946]
[1745203158825,1.2853,1634.2,1633.9,1.22416]
[1745203159026,1.22403,1634.1,1633.9,7.0480077]
[1745203159335,6.1556,1634.2,1633.9,4.9615077]
[1745203159834,4.43188,1634.0,1633.9,4.9615077]
[1745203160126,3.2078,1634.0,1633.9,4.9615077]
[1745203160327,4.43188,1634.0,1633.9,4.9615077]
[1745203160633,9.43188,1634.0,1633.9,4.9615077]
[1745203160832,14.29688,1634.0,1633.9,4.9615077]
[1745203161233,16.13306,1634.0,1633.6,0.00916983]
[1745203161428,3.2078,1633.8,1633.6,0.00916983]
[1745203161731,3.2078,1633.8,1633.6,2.94723983]
[1745203161936,3.1182,1633.9,1633.7,2.93801]
[1745203162129,8.0728,1634.0,1633.8,2.93793]
[1745203162329,9.29688,1634.0,1633.9,1.7137]
[1745203162530,8.0728,1634.0,1633.9,1.7137]
[1745203162835,4.865,1634.0,1633.9,2.93786]
[1745203163030,5.8433,1634.2,1634.0,1.22407]
[1745203163239,4.558,1634.2,1634.0,2.92197]
[1745203163530,2.57415,1634.2,1634.0,1.6979]
[1745203163731,4.558,1634.2,1633.9,2.264]
[1745203163938,2.99426,1634.1,1634.0,1.6979]
[1745203164134,2.99426,1634.1,1634.0,3.9619]
[1745203164335,2.99426,1634.1,1634.0,2.264]
[1745203164535,4.28026,1634.1,1634.0,2.264]
[1745203165029,9.28026,1634.1,1634.0,2.264]
[1745203165231,4.28026,1634.1,1634.0,2.264]
[1745203165437,1.22406,1634.1,1634.0,2.264]
[1745203165636,9.28026,1634.1,1634.0,2.264]
[1745203166033,3.06027,1634.0,1633.6,0.00916983]
[1745203166232,1.22431,1633.7,1633.6,1.64506983]
[1745203166734,4.23211,1633.7,1633.6,1.64506983]
[1745203167537,5.53921,1633.7,1633.6,0.00916983]
[1745203169642,1.22446,1633.5,1633.4,1.7436]
[1745203169844,4.43226,1633.5,1633.4,1.7436]
[1745203170644,6.09716,1633.5,1633.4,1.7436]
[1745203170934,1.22461,1633.3,1633.2,1.2778]
[1745203171141,1.22476,1633.1,1632.9,4.0703077]
[1745203171333,1.22476,1633.1,1633.0,3.0214]
[1745203171733,1.22474,1633.2,1633.0,3.0214]
[1745203171933,1.22474,1633.2,1633.1,1.7436]
[1745203172643,1.23372983,1633.4,1633.1,7.9683]
[1745203172842,1.23372983,1633.4,1633.1,2.9683]
[1745203173139,1.22461,1633.3,1633.2,1.6482]
[1745203173342,0.00916983,1633.4,1633.2,1.6482]
[1745203173343,1.23375983,1633.4,1633.2,1.6482]
[1745203174045,1.23375983,1633.4,1633.2,3.9122]
[1745203174341,1.23375983,1633.4,1633.3,1.6482]
[1745203175448,0.00916983,1633.4,1633.3,1.6482]
[1745203175642,0.00916983,1633.4,1633.3,4.27351]
[1745203176341,1.23369983,1633.4,1633.3,3.0489]
[1745203176742,0.00916983,1633.4,1633.3,3.0489]
[1745203176936,0.00916983,1633.4,1633.3,4.27351]
[1745203177136,0.00916983,1633.4,1633.3,3.0489]
[1745203177445,1.23369983,1633.4,1633.3,3.0489]
[1745203177640,1.23369983,1633.4,1633.3,1.6482]
[1745203178132,0.00916983,1633.4,1633.3,2.87281]
[1745203178736,0.00916983,1633.4,1633.3,7.87281]
[1745203179047,2.89085,1633.8,1633.3,9.3457077]
[1745203179242,1.22425,1633.8,1633.6,1.22438]
[1745203179546,1.22425,1633.8,1633.7,1.6105]
[1745203179746,10.56442,1633.9,1633.7,1.6105]
[1745203180138,10.56442,1633.9,1633.7,3.8745]
[1745203180340,4.859,1633.9,1633.8,1.6105]
[1745203180539,1.22416,1633.9,1633.8,4.3375]
[1745203180740,0.00916983,1634.0,1633.8,4.3375]
[1745203181048,1.23331983,1634.0,1633.9,1.6105]
[1745203181834,4.44111983,1634.0,1633.9,1.6105]
[1745203182040,6.05211983,1634.0,1633.9,1.6105]
[1745203182248,6.05211983,1634.0,1633.9,3.8745]
[1745203182839,2.84431983,1634.0,1633.9,3.8745]
[1745203183044,0.00916983,1634.0,1633.9,3.8745]
[1745203183751,0.00916983,1634.0,1633.9,5.09866]
[1745203183944,0.00916983,1634.0,1633.9,10.98266]
[1745203185644,0.00916983,1634.0,1633.9,15.98266]
[1745203186252,0.00916983,1634.0,1633.9,10.98266]
[1745203188740,2.83491,1634.3,1634.1,1.22399]
[1745203188945,1.22393,1634.2,1634.0,1.22403]
[1745203189155,1.22394,1634.2,1634.0,3.48803]
[1745203190355,1.22398,1634.2,1634.0,3.48808]
[1745203192148,1.22401,1634.1,1634.0,2.264]
[1745203192864,4.13481,1634.1,1634.0,2.264]
[1745203193845,9.13481,1634.1,1634.0,2.24566034]
[1745203194247,7.9108,1634.1,1633.7,1.2243]
[1745203194447,6.1603,1634.0,1633.7,1.2243]
[1745203194949,6.1603,1634.0,1633.8,1.22422]
[1745203195143,7.38438,1634.0,1633.7,3.48825]
[1745203195449,1.6174,1633.9,1633.7,3.48825]
[1745203196060,4.5429,1634.0,1633.8,1.2242]
[1745203196257,4.5429,1634.0,1633.8,1.3314]
[1745203196457,2.84158,1633.9,1633.7,2.264]
[1745203197059,1.22423,1633.8,1633.7,2.264]
[1745203197460,4.43203,1633.8,1633.7,2.264]
[1745203198159,1.22431,1633.7,1633.6,0.00916983]
[1745203198348,2.94441,1633.7,1633.6,0.00916983]
[1745203199663,9.24071,1633.7,1633.6,0.00916983]
[1745203199957,4.24071,1633.7,1633.6,0.00916983]
[1745203202655,3.0164,1633.7,1633.6,0.00916983]
[1745203202864,3.0164,1633.7,1633.6,1.72376983]
[1745203203461,11.2242,1633.7,1633.5,0.92585064]
[1745203203664,8.98888,1633.6,1633.5,0.5494]
[1745203204182,1.22473,1633.2,1633.0,3.2078]
[1745203204370,1.22466,1633.3,1633.0,6.1472]
[1745203204679,1.23382983,1633.3,1633.1,1.7146]
[1745203204875,2.90402983,1633.3,1633.1,1.7146]
[1745203205379,0.00916983,1633.3,1633.1,1.7146]
[1745203205572,2.90400983,1633.3,1633.1,1.7146]
[1745203205879,1.67936983,1633.3,1633.1,2.93935]
[1745203206081,0.00916983,1633.3,1633.2,2.89898]
[1745203206279,0.00916983,1633.3,1633.2,9.16928]
[1745203207179,0.00916983,1633.3,1633.2,11.43328]
[1745203207780,0.00916983,1633.3,1633.2,14.64108]
[1745203208272,4.858,1633.6,1633.5,1.22446]
[1745203208580,1.22437,1633.7,1633.5,1.22446]
[1745203208779,1.22437,1633.7,1633.6,1.6933]
[1745203209266,7.50188,1633.8,1633.6,1.6933]
[1745203209466,0.00916983,1633.8,1633.7,1.22431]
[1745203209666,0.00916983,1633.8,1633.7,5.49301]
[1745203210074,0.00916983,1633.8,1633.7,7.75701]
[1745203211282,6.1981,1634.2,1633.7,13.64096]
[1745203211482,1.22412,1634.0,1633.8,2.91752]
[1745203211780,2.94926,1634.1,1633.9,1.6933]
[1745203211981,2.94921,1634.1,1633.9,1.6933]
[1745203212184,1.7252,1634.1,1633.9,5.18143]
[1745203212677,1.7252,1634.1,1634.0,1.7074]
[1745203213381,1.7252,1634.1,1634.0,2.93148]
[1745203213583,1.7252,1634.1,1634.0,1.7074]
[1745203214479,6.20726983,1634.2,1634.0,2.93148]
[1745203214678,7.95396983,1634.2,1634.0,1.7074]
[1745203215478,4.34241983,1634.2,1633.9,1.22415]
[1745203215673,1.6405,1634.1,1633.9,2.97615]
[1745203216277,1.6405,1634.1,1634.0,1.752]
[1745203216882,1.37176983,1634.2,1634.0,2.97608]
[1745203217085,1.37176983,1634.2,1634.0,5.24008]
[1745203217280,1.37176983,1634.2,1634.1,1.752]
[1745203217585,1.35726983,1634.2,1634.1,1.752]
[1745203218783,2.58119983,1634.2,1634.1,1.752]
[1745203218978,1.35726983,1634.2,1634.1,1.752]
[1745203220884,0.00916983,1634.2,1634.1,2.97601]